bitfinex/quotes_ETHUSD_20240907
["timestamp","ask_amount","ask_price","bid_price","bid_amount"]
[1725689789981,0.00072867,2273.0,2272.9,42.95365392]
[1725689790337,0.00072867,2273.0,2272.9,38.55399392]
[1725689791377,0.00072867,2273.0,2272.9,37.63564541]
[1725689791538,0.00072867,2273.0,2272.9,38.55399392]
[1725689793975,0.00072867,2273.0,2272.9,42.95365392]
[1725689794342,0.00072867,2273.0,2272.9,42.95366494]
[1725689795266,4.39813,2273.7,2273.2,4.39896]
[1725689795588,6.79823,2273.7,2273.3,19.48958839]
[1725689795797,6.79823,2273.7,2273.3,19.53655438]
[1725689795966,4.3984,2273.6,2273.3,19.53655438]
[1725689796180,4.39851,2273.5,2273.3,19.44859419]
[1725689796480,4.39831,2273.6,2273.3,19.44859419]
[1725689797393,6.79821,2273.7,2273.4,0.08796639]
[1725689797899,6.79821,2273.7,2273.5,0.04719119]
[1725689798666,6.79821,2273.7,2273.5,19.44881939]
[1725689798867,4.39811,2273.7,2273.5,19.44881939]
[1725689799067,4.39809,2273.8,2273.5,19.44881939]
[1725689799282,8.79611,2273.8,2273.5,19.44881939]
[1725689799798,4.39812,2273.7,2273.5,19.44881939]
[1725689801001,0.46088722,2274.0,2273.5,19.44881939]
[1725689801002,0.46088722,2274.0,2273.9,8.79546]
[1725689801210,0.46088722,2274.0,2273.9,20.70388391]
[1725689801503,6.79575,2275.0,2274.3,4.39684]
[1725689801673,6.79575,2275.0,2274.4,0.1334527]
[1725689801874,4.39657,2274.5,2274.4,0.04553542]
[1725689802189,4.3968,2274.4,2273.8,4.39791]
[1725689802400,9.52637331,2274.5,2273.8,8.79566]
[1725689802567,11.19333,2274.5,2273.8,9.920616]
[1725689802773,11.19335,2274.5,2273.9,4.39767]
[1725689802993,11.19335,2274.5,2273.9,0.08793442]
[1725689803697,6.79667,2274.5,2273.9,0.08793442]
[1725689804001,7.91597,2274.5,2273.9,4.48564442]
[1725689804294,4.39679,2274.4,2273.9,0.08793442]
[1725689804495,4.39705,2274.3,2273.8,4.39775]
[1725689805657,4.39734,2274.1,2273.9,0.08793963]
[1725689805893,4.39734,2274.1,2273.6,8.79629]
[1725689806201,4.39734,2274.1,2273.4,4.39864]
[1725689806202,6.79744,2274.1,2273.4,4.39864]
[1725689806490,6.79744,2274.1,2273.5,4.39845]
[1725689806491,4.39762,2274.0,2273.5,4.39845]
[1725689807568,4.39762,2274.0,2273.6,19.4016282]
[1725689808099,2.4001,2274.1,2273.6,23.7998982]
[1725689808304,6.79754,2274.1,2273.7,0.0879509]
[1725689808503,2.4001,2274.1,2273.7,4.4860309]
[1725689808705,6.79747,2274.1,2273.7,4.4860309]
[1725689808993,6.79747,2274.1,2273.7,0.0879509]
[1725689810465,6.79747,2274.1,2273.8,19.4016282]
[1725689811595,11.18074,2273.8,2273.7,19.4016282]
[1725689811762,4.39843,2273.6,2273.4,19.4016282]
[1725689811962,2.3849,2273.8,2273.4,19.4016282]
[1725689812685,6.78292,2273.8,2273.4,19.4016282]
[1725689813701,4.39814,2273.7,2273.4,19.4016282]
[1725689814780,4.39831,2273.6,2273.4,19.4016282]
[1725689815062,4.39831,2273.6,2273.5,0.03928473]
[1725689815265,6.78225,2274.1,2273.6,4.3983]
[1725689815582,4.39764,2274.0,2273.5,26.39790949]
[1725689815795,4.39774,2273.9,2273.7,0.03928473]
[1725689816109,4.39774,2273.9,2273.8,0.03928473]
[1725689816281,4.39774,2273.9,2273.6,0.08795334]
[1725689816477,4.39774,2273.9,2273.7,0.03928473]
[1725689816805,4.85856801,2273.9,2273.7,0.03928473]
[1725689817396,4.85856801,2273.9,2273.5,23.8001182]
[1725689817710,4.85856801,2273.9,2273.6,0.08795334]
[1725689818006,4.85856801,2273.9,2273.7,4.43729473]
[1725689818007,0.46082801,2273.9,2273.7,4.43729473]
[1725689818207,0.46082801,2273.9,2273.8,0.89235081]
[1725689818397,0.46082801,2273.9,2273.8,0.98029424]
[1725689818713,0.46082801,2273.9,2273.8,20.42145854]
[1725689819221,0.46082801,2273.9,2273.8,27.10307854]
[1725689821514,0.46082801,2273.9,2273.8,7.61350691]
[1725689821815,0.46082801,2273.9,2273.8,0.0395361]
[1725689822009,4.85855801,2273.9,2273.8,0.0395361]
[1725689822330,4.85855801,2273.9,2273.8,0.03935088]
[1725689822536,0.46082801,2273.9,2273.7,19.4016282]
[1725689822818,0.46082801,2273.9,2273.8,0.03935088]
[1725689823180,0.46082801,2273.9,2273.7,19.4016282]
[1725689823379,4.85855801,2273.9,2273.8,0.03935088]
[1725689823615,10.18189781,2273.9,2273.8,0.03935088]
[1725689823816,10.18189781,2273.9,2273.3,21.6853282]
[1725689823817,4.39797,2273.8,2273.4,0.08795862]
[1725689823981,4.39812,2273.7,2273.4,0.08795862]
[1725689824178,4.39812,2273.7,2273.3,21.6853282]
[1725689824721,9.25647801,2273.9,2273.3,21.6853282]
[1725689824928,9.25647801,2273.9,2273.4,0.08796059]
[1725689825490,9.25647801,2273.9,2273.3,26.0841282]
[1725689825491,2.3849,2273.6,2273.3,19.4016282]
[1725689825710,4.39869,2273.4,2273.3,19.4016282]
[1725689826536,8.79738,2273.4,2273.3,19.4016282]
[1725689826904,4.39869,2273.4,2273.3,19.4016282]
[1725689827121,8.79738,2273.4,2273.3,19.4016282]
[1725689830033,8.79738,2273.4,2273.3,19.44010401]
[1725689830237,11.15648,2273.4,2273.3,19.44010401]
[1725689830389,12.711959,2273.4,2273.3,19.44010401]
[1725689830707,12.711959,2273.4,2273.3,0.03847581]
[1725689831029,12.711959,2273.4,2273.0,19.4016282]
[1725689831030,4.39927,2273.1,2273.0,19.4016282]
[1725689832296,4.86023419,2273.1,2273.0,19.4016282]
[1725689832516,0.46096419,2273.1,2273.0,19.4016282]
[1725689832812,4.59235619,2274.2,2273.0,19.4016282]
[1725689832813,4.39514,2275.3,2274.6,4.39627]
[1725689833111,4.39475,2275.5,2274.5,0.7813]
[1725689833112,4.39561,2275.0,2274.5,0.7813]
[1725689833418,4.39527,2275.2,2274.7,0.08791484]
[1725689833612,6.75344,2275.7,2274.7,0.08791484]
[1725689833613,4.39507,2275.3,2274.7,0.08791484]
[1725689833923,8.78994,2275.4,2274.7,0.08791484]
[1725689834148,4.39508,2275.3,2274.7,0.08791484]
[1725689835215,4.39494,2275.4,2274.7,4.48397484]
[1725689835411,8.59373268,2275.6,2274.5,5.17773]
[1725689835412,4.19920268,2275.6,2274.5,5.17773]
[1725689835756,4.39508,2275.3,2274.6,4.914013]
[1725689836257,4.39502,2275.4,2274.7,4.39616]
[1725689836453,4.39502,2275.4,2274.7,8.79222]
[1725689836747,4.39502,2275.4,2274.7,4.39606]
[1725689836957,8.78998,2275.4,2274.7,4.39606]
[1725689837257,10.15441129,2275.4,2274.7,8.79214]
[1725689837550,5.75945129,2275.4,2274.8,4.39595]
[1725689837947,10.15438129,2275.4,2274.8,4.39595]
[1725689838159,10.15438129,2275.4,2274.8,23.7975782]
[1725689838512,10.15438129,2275.4,2274.8,19.4016282]
[1725689838720,5.75943129,2275.4,2274.8,23.7976082]
[1725689838918,4.39493,2275.4,2274.9,0.08790028]
[1725689839512,8.78987,2275.4,2274.9,0.08790028]
[1725689839715,8.78993,2275.4,2274.9,0.08790028]
[1725689839958,8.78986,2275.4,2274.9,0.08790028]
[1725689840539,4.39508,2275.3,2274.9,0.08790028]
[1725689840931,8.78987,2275.4,2274.9,0.08790264]
[1725689841166,4.39493,2275.4,2274.9,4.48368264]
[1725689841365,4.39493,2275.4,2274.9,5.17895811]
[1725689842222,8.78917,2275.6,2275.0,4.39549]
[1725689842427,8.78917,2275.6,2274.9,5.17895811]
[1725689842428,4.39484,2275.4,2274.9,5.09105547]
[1725689842759,4.39484,2275.4,2275.0,0.08789761]
[1725689843431,4.39484,2275.4,2275.1,19.4016282]
[1725689843627,4.39484,2275.4,2275.2,19.4016282]
[1725689843827,8.78978,2275.4,2275.2,19.4016282]
[1725689844161,4.39484,2275.4,2275.2,19.4016282]
[1725689844367,8.78978,2275.4,2275.2,19.4016282]
[1725689844561,4.39484,2275.4,2275.2,19.4016282]
[1725689846371,4.39455,2275.6,2275.2,21.78135102]
[1725689846372,4.39473,2275.5,2275.2,21.78135102]
[1725689846541,4.39455,2275.6,2275.3,0.08789105]
[1725689847338,8.78918,2275.6,2275.3,0.08789105]
[1725689847540,4.39455,2275.6,2275.4,19.4016282]
[1725689847872,4.39425,2275.7,2275.4,19.4016282]
[1725689848070,4.39447,2275.6,2275.4,19.4016282]
[1725689848665,4.39463,2275.5,2275.4,19.4016282]
[1725689848868,4.39447,2275.6,2275.4,19.4016282]
[1725689849362,4.39463,2275.5,2275.4,19.4016282]
[1725689852163,8.78926,2275.5,2275.4,19.4016282]
[1725689852336,16.444098,2275.5,2275.4,19.4016282]
[1725689852665,8.79158,2274.9,2274.8,6.5379]
[1725689852866,4.39637,2274.6,2274.5,19.4016282]
[1725689853943,8.79274,2274.6,2274.5,19.4016282]
[1725689854146,8.79274,2274.6,2274.2,6.5379]
[1725689854147,4.39695,2274.3,2274.2,19.4016282]
[1725689854376,8.79405,2274.3,2274.0,19.4016282]
[1725689854534,4.39695,2274.3,2274.0,19.4016282]
[1725689855142,4.39727,2274.2,2274.0,19.4016282]
[1725689855951,8.79468,2274.1,2274.0,19.4016282]
[1725689856874,4.39639,2274.6,2274.0,19.4016282]
[1725689856875,4.39638,2274.6,2274.1,4.39724]
[1725689857076,4.39631,2274.7,2274.2,0.08792797]
[1725689857285,4.39631,2274.7,2274.3,19.4016282]
[1725689857449,8.7926,2274.7,2274.4,0.08792355]
[1725689857646,4.39629,2274.7,2274.4,0.08792355]
[1725689858138,4.396,2274.8,2274.4,0.08792355]
[1725689858336,4.396,2274.8,2274.4,2.47942355]
[1725689858748,4.39621,2274.7,2274.4,2.47942355]
[1725689858952,4.39621,2274.7,2274.4,0.08792355]
[1725689859155,0.55,2274.6,2274.4,0.08792355]
[1725689859967,0.55,2274.7,2274.4,0.08792355]
[1725689860273,0.55,2274.7,2274.4,2.47658373]
[1725689860779,0.55,2274.9,2274.4,2.47658373]
[1725689861079,2.3813,2275.3,2274.4,6.78532018]
[1725689861237,4.39551,2275.1,2274.5,0.08791363]
[1725689861442,4.39551,2275.1,2274.5,7.05956104]
[1725689861682,4.39522,2275.2,2274.6,6.78785]
[1725689861856,4.39522,2275.2,2274.7,0.08790572]
[1725689862276,4.39496,2275.4,2274.8,4.39597]
[1725689862277,8.78991,2275.4,2274.8,4.39597]
[1725689862479,4.39504,2275.3,2274.6,6.78773]
[1725689862690,4.39533,2275.2,2274.7,1.94016282]
[1725689863963,0.55,2275.1,2274.7,1.94016282]
[1725689865370,0.55,2275.1,2274.8,0.08790704]
[1725689865574,0.55,2275.2,2274.8,0.08790704]
[1725689865746,0.55,2275.2,2274.8,1.40910503]
[1725689866652,4.39512,2275.3,2274.8,20.81073243]
[1725689867782,4.39524,2275.2,2274.8,20.81073243]
[1725689867982,0.55,2275.1,2274.8,20.72282619]
[1725689868277,4.39524,2275.2,2274.8,20.72282619]
[1725689868278,4.3954,2275.2,2274.8,19.4016282]
[1725689869356,4.39541,2275.1,2274.8,19.4016282]
[1725689870509,4.39429,2275.7,2274.7,19.4016282]
[1725689870694,4.39284,2276.5,2274.7,19.4016282]
[1725689870695,4.39214,2276.8,2276.0,6.88217]
[1725689870896,10.38407868,2276.9,2275.8,4.39391]
[1725689871199,5.99205868,2276.9,2276.2,4.39315]
[1725689871510,1.03836187,2276.9,2276.4,4.39288]
[1725689871672,4.39157,2277.1,2276.5,0.08784428]
[1725689872488,2.4682,2276.9,2275.8,2.4885]
[1725689872706,3.52385868,2277.2,2275.4,2.4885]
[1725689872707,4.39353,2276.1,2275.4,2.4885]
[1725689873078,4.39329,2276.2,2275.4,11.2781]
[1725689873813,4.39329,2276.2,2275.5,4.39461]
[1725689874016,4.39382,2276.0,2275.4,2.4885]
[1725689874181,0.55,2275.9,2275.4,2.4885]
[1725689874703,0.55,2275.9,2275.3,0.08788506]
[1725689875471,4.94386,2275.9,2275.3,0.08788506]
[1725689876109,4.94386,2275.9,2275.2,4.39513]
[1725689876413,5.327823,2275.8,2275.2,4.39513]
[1725689876579,0.55,2275.7,2275.3,0.08788703]
[1725689877398,0.55,2275.7,2275.3,4.48288703]
[1725689877669,4.94388,2275.9,2275.3,4.48288703]
[1725689877870,1.85368739,2275.9,2275.3,4.48288703]
[1725689878684,6.24758739,2275.9,2275.3,4.48288703]
[1725689878886,6.24758739,2275.9,2275.3,0.08788703]
[1725689879094,4.39408,2275.8,2275.2,0.08788715]
[1725689879301,0.55,2275.7,2275.2,4.48309715]
[1725689879608,6.24758739,2275.9,2275.3,19.48951526]
[1725689879806,10.64153739,2275.9,2275.3,19.48951526]
[1725689880316,5.45829374,2275.8,2275.3,19.48951526]
[1725689880522,5.45829374,2275.8,2275.3,19.4016282]
[1725689880683,0.55,2275.7,2275.3,19.4016282]
[1725689881309,0.55,2275.7,2275.4,0.08788886]
[1725689882223,0.55,2275.8,2275.4,0.08788886]
[1725689882513,1.483791,2275.8,2275.4,0.08788886]
[1725689882673,1.483791,2275.8,2275.3,19.4016282]
[1725689882874,1.483791,2275.8,2275.4,0.08788727]
[1725689883508,5.877861,2275.8,2275.3,19.4016282]
[1725689883716,0.46061257,2277.0,2276.0,4.39366]
[1725689883912,2.4682,2277.4,2276.8,4.39203]
[1725689884216,4.39205,2276.9,2276.3,0.08782049]
[1725689884413,0.439205,2276.8,2276.3,0.08782049]
[1725689884889,4.39183,2277.0,2276.3,4.48080049]
[1725689885104,4.39166,2277.1,2276.4,4.39283]
[1725689885303,3.52385868,2277.2,2276.5,4.39267]
[1725689885519,3.52385868,2277.2,2276.6,4.48019823]
[1725689886536,8.78253,2277.3,2276.6,4.48019823]
[1725689886537,4.39124,2277.3,2276.6,4.48019823]
[1725689886833,2.4682,2277.4,2276.7,0.08782994]
[1725689886990,6.85931,2277.4,2276.7,4.48012994]
[1725689887191,6.85931,2277.4,2276.8,0.08783009]
[1725689887392,5.31354312,2277.3,2276.8,0.08783009]
[1725689887928,4.39117,2277.3,2276.8,0.08783009]
[1725689888235,4.39145,2277.2,2276.8,0.08783009]
[1725689888525,4.39117,2277.3,2276.7,0.08783238]
[1725689889133,4.39117,2277.3,2276.7,4.48010238]
[1725689889293,0.55,2277.2,2276.8,0.0878322]
[1725689889493,4.94136,2277.2,2276.8,0.0878322]
[1725689890291,4.39188,2277.0,2276.3,6.79285]
[1725689890489,0.55,2276.9,2276.4,0.08784229]
[1725689890695,0.55,2276.9,2276.5,19.4016282]
[1725689891193,0.55,2276.9,2276.5,23.7943182]
[1725689891422,0.55,2277.1,2276.6,0.08784225]
[1725689892303,0.55,2277.1,2276.6,4.48032225]
[1725689893141,0.55,2277.1,2276.6,0.08784225]
[1725689893438,0.55,2277.1,2276.6,2.76084322]
[1725689893650,0.55,2277.1,2276.6,7.15334322]
[1725689894412,0.55,2277.1,2276.7,19.4016282]
[1725689895413,4.94155,2277.1,2276.7,19.4016282]
[1725689898749,4.39176,2277.0,2276.7,19.4016282]
[1725689898906,0.55,2276.9,2276.7,20.69431559]
[1725689899312,4.94197,2276.9,2276.7,20.69431559]
[1725689899519,0.55,2276.9,2276.7,20.69431559]
[1725689900524,4.94195,2276.9,2276.7,20.69431559]
[1725689900724,4.39195,2276.9,2276.7,20.69431559]
[1725689900926,0.55,2276.8,2276.7,20.69431559]
[1725689902268,4.94212,2276.8,2276.7,20.69431559]
[1725689902429,4.94212,2276.8,2276.7,19.4016282]
[1725689903339,0.55,2276.8,2276.7,19.4016282]
[1725689904342,4.39171,2277.1,2276.7,19.4016282]
[1725689904560,4.39169,2277.1,2276.7,19.4016282]
[1725689905735,2.0,2277.4,2276.7,19.4016282]
[1725689906059,0.68512952,2277.3,2276.8,19.4016282]
[1725689906280,4.39209,2276.9,2276.8,19.4016282]
[1725689906437,4.39222,2276.8,2276.6,19.4016282]
[1725689906638,0.55,2276.7,2276.6,19.4016282]
[1725689907040,0.55,2276.7,2276.6,22.28037894]
[1725689907757,0.55,2276.8,2276.6,22.28037894]
[1725689908687,4.94216,2276.8,2276.6,22.28037894]
[1725689909674,9.33438,2276.8,2276.6,22.28037894]
[1725689909869,4.94216,2276.8,2276.6,22.28037894]
[1725689910071,0.55,2276.8,2276.7,2.46802789]
[1725689910379,4.39232,2276.7,2276.6,19.4016282]
[1725689910580,4.94232,2276.7,2276.6,19.4016282]
[1725689910901,0.55,2276.7,2276.6,19.4016282]
[1725689912501,0.55,2276.7,2276.5,19.4016282]
[1725689912695,0.55,2276.6,2276.5,19.4016282]
[1725689912997,0.55,2276.6,2276.5,21.82590494]
[1725689913296,0.55,2276.7,2276.5,21.82590494]
[1725689914088,4.94233,2276.7,2276.5,21.82590494]
[1725689914595,0.55,2276.7,2276.5,21.82590494]
[1725689914895,0.55,2276.8,2276.5,21.82590494]
[1725689915060,0.55,2276.8,2276.6,2.75452865]
[1725689918313,0.55,2276.8,2276.6,22.15615685]
[1725689918829,0.55,2276.8,2276.6,22.06831562]
[1725689919510,2.2692,2278.4,2277.4,6.64127]
[1725689919706,4.40095,2278.0,2277.4,2.2503]
[1725689919915,0.011,2278.0,2277.5,4.39075]
[1725689920321,0.011,2278.0,2277.6,4.39053]
[1725689921167,0.011,2278.0,2277.5,4.3906]
[1725689921405,0.011,2278.0,2277.5,8.78125]
[1725689921569,0.011,2278.0,2277.6,1.125658]
[1725689923110,0.011,2278.0,2277.4,2.47533]
[1725689923111,4.39003,2277.9,2277.4,2.47533]
[1725689923414,4.39003,2277.9,2277.3,4.39102]
[1725689923415,0.55,2277.8,2277.3,4.39102]
[1725689923595,0.55,2277.8,2277.3,8.78207]
[1725689923979,0.55,2277.8,2277.4,4.39094]
[1725689924707,4.94002,2277.9,2277.4,4.39094]
[1725689924911,4.94002,2277.9,2277.4,5.269136]
[1725689927007,9.33016,2277.9,2277.4,0.878196]
[1725689927391,9.33016,2277.9,2277.4,19.4016282]
[1725689927392,4.39048,2277.7,2277.4,19.4016282]
[1725689927603,0.55,2277.6,2277.4,19.4016282]
[1725689928512,0.55,2277.7,2277.4,19.4016282]
[1725689928886,0.011,2278.0,2277.5,0.08781298]
[1725689929090,4.40083,2278.0,2277.5,6.6715571]
[1725689929917,4.39011,2277.9,2277.5,2.2809171]
[1725689930500,0.55,2277.8,2277.5,2.2809171]
[1725689931726,4.39024,2277.8,2277.4,19.4016282]
[1725689931927,0.55,2277.7,2277.4,19.4016282]
[1725689933230,0.55,2277.7,2277.4,23.7924382]
[1725689933446,0.13932585,2278.3,2278.2,8.77886]
[1725689933610,2.0,2280.0,2278.8,4.38813]
[1725689933611,4.38695,2279.5,2278.8,4.38813]
[1725689933935,2.4861,2279.9,2279.0,4.38775]
[1725689933936,11.25864,2279.9,2279.0,4.38775]
[1725689934237,4.38565,2280.2,2279.5,4.38676]
[1725689934391,2.4861,2280.3,2279.7,4.38641]
[1725689934587,6.28148347,2280.3,2279.3,0.0877177]
[1725689934787,6.28148347,2280.3,2279.3,4.4749977]
[1725689934788,4.38593,2280.1,2279.3,4.4749977]
[1725689934993,4.38607,2280.0,2279.2,6.77939]
[1725689935297,4.38607,2280.0,2279.3,4.38729]
[1725689935611,4.38607,2280.0,2279.3,5.503967]
[1725689935798,4.3867,2279.7,2279.1,4.38756]
[1725689936001,8.7734,2279.7,2278.9,8.77591]
[1725689936339,8.77337,2279.7,2278.9,4.38793]
[1725689936487,4.38667,2279.7,2278.9,4.38793]
[1725689936692,3.79538347,2280.0,2279.0,0.08774124]
[1725689936693,4.38691,2279.6,2279.0,0.08774124]
[1725689936928,0.55,2279.5,2279.0,4.47561124]
[1725689937291,4.93693,2279.5,2279.0,1.21328136]
[1725689937647,4.93694,2279.5,2279.0,0.08774124]
[1725689938447,4.38713,2279.4,2279.0,0.08774124]
[1725689938746,0.55,2279.3,2279.0,0.08774124]
[1725689939244,0.55,2279.3,2278.9,0.08774539]
[1725689939450,4.93732,2279.3,2278.9,0.08774539]
[1725689940306,0.55,2279.3,2278.9,0.08774539]
[1725689940506,4.93733,2279.3,2278.9,0.08774539]
[1725689940913,1.482446,2279.3,2278.9,0.08774539]
[1725689941256,5.869796,2279.3,2278.9,0.08774539]
[1725689941747,4.38753,2279.2,2278.9,0.08774539]
[1725689941933,0.55,2279.1,2278.8,0.08774979]
[1725689943143,0.55,2279.1,2278.5,6.33901]
[1725689943317,0.55,2279.1,2278.6,0.678063]
[1725689943529,4.93783,2279.1,2278.6,0.678063]
[1725689943729,4.38792,2279.0,2278.6,0.678063]
[1725689943913,0.55,2278.9,2278.7,0.08775626]
[1725689945238,0.55,2278.9,2278.6,0.08775777]
[1725689946732,4.38829,2278.8,2278.6,0.08775777]
[1725689946968,0.55,2278.7,2278.6,0.08775777]
[1725689947127,0.55,2278.7,2278.4,19.4893919]
[1725689947327,0.55,2278.7,2278.4,22.29874889]
[1725689947630,4.93859,2278.7,2278.4,22.21098519]
[1725689947966,4.93857,2278.7,2278.4,22.21098519]
[1725689948527,4.93857,2278.7,2278.4,19.4016282]
[1725689948528,4.38866,2278.6,2278.4,19.4016282]
[1725689948757,0.55,2278.7,2278.4,19.4016282]
[1725689948758,0.55,2278.5,2278.4,19.4016282]
[1725689948961,4.93847,2278.7,2278.4,19.4016282]
[1725689949329,4.3887,2278.6,2278.4,19.4016282]
[1725689949570,0.55,2278.5,2278.0,19.4016282]
[1725689949877,4.38962,2278.1,2278.0,19.4016282]
[1725689950233,4.93962,2278.1,2278.0,19.4016282]
[1725689951745,4.93962,2278.1,2277.6,2.3919]
[1725689951746,4.93973,2278.1,2277.7,19.4016282]
[1725689952053,0.55,2278.0,2277.8,0.08779102]
[1725689952230,4.93982,2278.0,2277.8,19.48941922]
[1725689953184,4.39,2277.9,2277.8,19.4016282]
[1725689953484,4.94,2277.9,2277.8,19.4016282]
[1725689953852,9.33,2277.9,2277.8,19.4016282]
[1725689954091,4.39021,2277.8,2277.4,19.4016282]
[1725689954384,4.39041,2277.7,2277.4,22.02008802]
[1725689954543,0.55,2277.6,2277.4,22.02008802]
[1725689954939,4.94062,2277.6,2277.4,22.02008802]
[1725689955186,4.39077,2277.5,2277.3,19.4016282]
[1725689955479,4.94097,2277.4,2277.3,19.4016282]
[1725689955641,0.55,2277.4,2277.3,19.4016282]
[1725689956166,4.94097,2277.4,2277.3,19.4016282]
[1725689956975,4.3915,2277.2,2277.0,19.4016282]
[1725689957342,4.94155,2277.1,2276.8,19.4016282]
[1725689957543,4.94155,2277.1,2276.9,19.4016282]
[1725689958284,0.55,2277.1,2276.9,19.4016282]
[1725689958949,4.94159,2277.1,2276.9,19.4016282]
[1725689959356,4.39174,2277.0,2276.9,19.4016282]
[1725689959568,4.94174,2277.0,2276.9,19.4016282]
[1725689959877,0.55,2277.0,2276.9,19.4016282]
[1725689960081,0.55,2277.1,2276.9,19.4016282]
[1725689960674,0.55,2277.1,2276.7,19.4016282]
[1725689960851,0.55,2277.1,2276.7,21.97605802]
[1725689961771,0.55,2277.1,2276.8,0.08782768]
[1725689962154,4.94159,2277.1,2276.8,0.08782768]
[1725689962366,4.94159,2277.1,2276.8,0.08782893]
[1725689962566,4.94159,2277.1,2276.7,21.97605802]
[1725689963776,4.94159,2277.1,2276.8,0.08783105]
[1725689963979,4.94159,2277.1,2276.7,21.97605802]
[1725689963980,4.39189,2277.0,2276.7,19.4016282]
[1725689964186,0.55,2276.9,2276.7,19.4016282]
[1725689964485,4.94194,2276.9,2276.7,19.4016282]
[1725689965052,9.33405,2276.9,2276.7,19.4016282]
[1725689965252,4.39212,2276.8,2276.7,19.4016282]
[1725689965569,0.55,2276.8,2276.7,19.4016282]
[1725689965953,3.79538347,2277.4,2276.7,23.29209102]
[1725689966280,8.78257,2277.3,2276.8,4.47982246]
[1725689966651,8.78253,2277.3,2276.9,19.4016282]
[1725689966869,4.39126,2277.3,2277.0,0.08782298]
[1725689967253,0.55,2277.2,2277.0,0.08782298]
[1725689968390,4.94139,2277.2,2276.9,19.4016282]
[1725689969188,4.39155,2277.1,2276.9,19.4016282]
[1725689969388,0.55,2277.0,2276.9,19.4016282]
[1725689970083,4.94174,2277.0,2276.9,19.4016282]
[1725689971699,9.33348,2277.0,2276.9,19.4016282]
[1725689972557,9.33348,2277.0,2276.5,19.4016282]
[1725689972789,9.33348,2277.0,2276.6,0.08783719]
[1725689973583,4.39194,2276.9,2276.6,0.08783719]
[1725689973799,0.55,2276.8,2276.6,0.08783719]
[1725689974697,0.55,2276.8,2276.6,19.48946539]
[1725689975612,4.39117,2277.3,2276.6,19.48946539]
[1725689975613,4.39112,2277.4,2276.7,21.3519282]
[1725689975757,0.46032323,2277.6,2277.4,4.39082]
[1725689975957,0.46032323,2277.6,2277.5,4.47857085]
[1725689976174,0.46032323,2277.6,2277.5,8.86934085]
[1725689976376,0.46032323,2277.6,2277.5,4.47857085]
[1725689976586,0.46032323,2277.6,2277.5,4.9768279]
[1725689978371,1.01032323,2277.6,2277.5,4.9768279]
[1725689978610,1.01032323,2277.6,2277.5,0.5860579]
[1725689978769,1.01032323,2277.6,2277.5,4.9768279]
[1725689980330,1.01032323,2277.6,2277.5,0.49825705]
[1725689980615,1.01032323,2277.6,2277.5,4.88902705]
[1725689981114,1.01032323,2277.6,2277.5,4.97683214]
[1725689981680,1.01032323,2277.6,2277.5,24.37846034]
[1725689982188,0.46032323,2277.6,2277.5,24.37846034]
[1725689983491,1.01032323,2277.6,2277.5,19.4016282]
[1725689984699,1.01032323,2277.6,2277.5,23.7923982]
[1725689986954,1.01032323,2277.6,2277.5,19.4016282]
[1725689987657,1.01032323,2277.6,2277.2,23.7928882]
[1725689987826,0.55,2277.5,2277.3,0.08781314]
[1725689988240,0.55,2277.5,2277.3,4.47894314]
[1725689988564,0.55,2277.5,2277.3,0.08781314]
[1725689989167,0.46032323,2277.6,2277.3,0.08781314]
[1725689989322,0.55,2277.5,2277.3,0.08781314]
[1725689989762,0.55,2277.5,2277.3,0.08781363]
[1725689991485,0.55,2277.5,2277.2,19.4016282]
[1725689991640,2.897,2277.5,2277.2,19.4016282]
[1725689991835,0.55,2277.5,2277.2,19.4016282]
[1725689992357,4.94078,2277.5,2277.2,21.78093602]
[1725689992662,4.94078,2277.5,2277.2,19.4016282]
[1725689995751,6.73807,2277.4,2277.1,19.4016282]
[1725689996061,0.55,2277.3,2277.1,19.4016282]
[1725689996767,4.9412,2277.3,2277.1,19.4016282]
[1725689998029,0.55,2277.3,2277.1,19.4016282]
[1725689998460,0.55,2277.4,2277.1,19.4016282]
[1725689999473,0.55,2277.4,2277.2,0.08781953]
[1725689999634,0.55,2277.4,2277.2,19.48944773]
[1725690000872,4.94099,2277.4,2277.2,19.4016282]
[1725690001163,4.39116,2277.3,2277.2,19.4016282]
[1725690001367,4.94116,2277.3,2277.2,19.4016282]
[1725690002461,0.55,2277.3,2277.2,19.4016282]
[1725690004895,4.39069,2277.6,2277.2,19.4016282]
[1725690005097,8.78137,2277.6,2277.2,19.4016282]
[1725690005326,8.78138,2277.6,2277.2,19.4016282]
[1725690005809,8.78137,2277.6,2277.3,19.4016282]
[1725690006026,0.55,2277.5,2277.3,19.4016282]
[1725690007819,0.55,2277.5,2277.3,26.17200502]
[1725690008030,4.3906,2277.6,2277.4,0.08781006]
[1725690008182,0.55,2277.5,2277.3,21.78094502]
[1725690008906,0.55,2277.5,2277.4,0.08781054]
[1725690009290,0.55,2277.5,2277.3,21.78094502]
[1725690010299,4.94088,2277.5,2277.3,21.78094502]
[1725690010615,0.55,2277.5,2277.3,19.4016282]
[1725690011091,4.94092,2277.5,2277.3,19.4016282]
[1725690011296,4.39097,2277.4,2277.3,19.4016282]
[1725690011512,4.39097,2277.4,2277.1,19.4016282]
[1725690011513,0.55,2277.4,2277.1,19.4016282]
[1725690011708,4.94079,2277.5,2277.2,0.08781711]
[1725690014320,4.39099,2277.4,2277.1,19.4016282]
[1725690014490,0.55,2277.3,2277.1,19.4016282]
[1725690017031,4.94117,2277.3,2277.1,19.4016282]
[1725690017532,4.94117,2277.3,2276.9,19.4016282]
[1725690017720,4.94117,2277.3,2277.0,19.4016282]
[1725690020352,4.94117,2277.3,2277.0,21.97600602]
[1725690021416,0.55,2277.3,2277.1,4.4793741]
[1725690021724,0.55,2277.4,2277.1,0.0878241]
[1725690022123,0.55,2277.4,2277.1,4.4793141]
[1725690022342,0.55,2277.4,2277.2,3.08470501]
[1725690023654,0.55,2277.4,2277.2,22.48633321]
[1725690024953,0.55,2277.4,2277.2,19.4016282]